fUSD/lending_fUSD_20240331
["ID","MTS","AMOUNT","RATE_DAILY","PERIOD"]
[321082183,1711887042346,-500.0,0.00041369,4]
[321082184,1711887042356,-513.30247378,0.00041369,4]
[321082185,1711887042366,-778.17,0.00041369,4]
[321082186,1711887042375,-815.95,0.00041369,4]
[321082187,1711887042384,-500.0,0.00041369,4]
[321082188,1711887042394,-500.0,0.00041369,4]
[321082189,1711887042404,-500.0,0.00041369,4]
[321082190,1711887042414,-738.7,0.00041369,4]
[321082191,1711887042423,-3130.73,0.00041369,4]
[321082192,1711887042433,-2759.78,0.00041369,4]
[321082193,1711887042443,-500.0,0.00041369,4]
[321082194,1711887042452,-500.0,0.00041369,4]
[321082195,1711887042463,-4620.82,0.00041369,4]
[321082196,1711887042472,-669.04,0.00041369,4]
[321082197,1711887042484,-521.62409852,0.00041369,4]
[321082198,1711887042493,-500.0,0.00041369,4]
[321082199,1711887042503,-698.27,0.00041369,4]
[321082200,1711887042512,-284.50530784,0.00041369,4]
[321082201,1711887042522,-565.48,0.00041369,4]
[321082202,1711887042531,-775.6,0.00041369,4]
[321082204,1711887042540,-1121.27,0.00041369,4]
[321082206,1711887042550,-4190.91,0.00041369,4]
[321082207,1711887042559,-945.93,0.00041369,4]
[321082208,1711887042569,-500.0,0.00041369,4]
[321082210,1711887042578,-1572.81,0.00041369,4]
[321082212,1711887042587,-692.25,0.00041369,4]
[321082214,1711887042597,-603.22,0.00041369,4]
[321082215,1711887042606,-5544.85,0.00041369,4]
[321082216,1711887042615,-500.0,0.00041369,4]
[321082217,1711887042625,-500.0,0.00041369,4]
[321082218,1711887042635,-555.03,0.00041369,4]
[321082219,1711887042646,-1062.38,0.00041369,4]
[321082220,1711887042656,-761.53,0.00041369,4]
[321082221,1711887042666,-6237.43,0.00041369,4]
[321082222,1711887042676,-500.0,0.00041369,4]
[321082223,1711887042685,-500.0,0.00041369,4]
[321082224,1711887042694,-3449.76,0.00041369,4]
[321082225,1711887042704,-1227.73,0.00041369,4]
[321082226,1711887042714,-521.7,0.00041369,4]
[321082227,1711887042723,-1221.69,0.00041369,4]
[321082228,1711887042733,-624.34,0.00041369,4]
[321082229,1711887042742,-5762.32,0.00041369,4]
[321082230,1711887042751,-500.0,0.00041369,4]
[321082231,1711887042760,-538.39,0.00041369,4]
[321082232,1711887042771,-545.33,0.00041369,4]
[321082233,1711887042781,-500.0,0.00041369,4]
[321082234,1711887042790,-500.0,0.00041369,4]
[321082235,1711887042799,-158.86839836,0.00041435,2]
[321082236,1711887042809,-178689.94834812,0.000415,30]
[321082240,1711887042851,-35000.0,0.000415,30]
[321082250,1711887042999,-596.62828519,0.00041472,2]
[321082251,1711887043009,-67.44694511,0.000415,30]
[321082252,1711887043020,-250.732,0.000415,30]
[321082253,1711887043031,-352.345,0.000415,30]
[321082254,1711887043042,-8165.50662299,0.000415,30]
[321082255,1711887043053,-14586.35191959,0.000415,30]
[321082256,1711887043064,-2716.64072656,0.000415,30]
[321082257,1711887043102,-4434.4853352,0.000415,30]
[321082258,1711887043222,-2527.99473771,0.000415,30]
[321082259,1711887043314,-1462.10948609,0.000415,30]
[321082263,1711887045863,-2470.47,0.00041095,4]
[321082264,1711887045873,-500.0,0.00041095,4]
[321082265,1711887045883,-276.09343172,0.00041095,4]
[321082266,1711887045893,-1098.05522204,0.00041368,4]
[321082267,1711887045903,-1028.36178785,0.00041369,4]
[321082268,1711887046027,-262.02737352,0.00041369,4]
[321082269,1711887046039,-655.19974353,0.00041369,4]
[321082270,1711887046135,-524.8810951,0.00041369,4]
[321082271,1711887046145,-500.0,0.00041369,4]
[321082272,1711887046154,-2790.15765489,0.000415,30]
[321082273,1711887046284,-2663.87416105,0.000415,30]
[321082276,1711887530908,-173.8,0.00031904,2]
[321082277,1711887642244,166.89,0.00031583,2]
[321082278,1711887693902,1519.78552981,0.00031583,4]
[321082279,1711887695110,139.52447019,0.00031583,4]
[321082280,1711887695134,567.21490573,0.00031583,4]
[321082281,1711887705104,401.143511,0.00023687,2]
[321082282,1711887714067,825.57734315,0.00031583,4]
[321082283,1711887728615,206.06424012,0.00031583,4]
[321082284,1711887728636,472.37580837,0.00031583,4]
[321082285,1711887750614,678.44004849,0.00031583,4]
[321082286,1711887776810,523.83920519,0.00031583,4]
[321082287,1711887829619,156.81400468,0.00041805,41]
[321082854,1711888221838,111973.5185,0.00041808,30]
[321082901,1711888232123,-270.62763453,0.00032999,4]
[321082902,1711888232133,-11.58690291,0.00033,3]
[321082904,1711888232144,-338.41309709,0.00033,3]
[321082905,1711888232156,-14.32185977,0.00035,3]
[321082906,1711888232182,-385.67814023,0.00035,3]
[321082907,1711888232191,-156.5874914,0.00036512,7]
[321082908,1711888232201,-250.0,0.00036892,2]
[321082909,1711888232210,-440.4,0.00036892,2]
[321082910,1711888232221,-154.93171568,0.000369,2]
[321082911,1711888232231,-450.0,0.00037,3]
[321082912,1711888232242,-173.64997316,0.00037112,7]
[321082913,1711888232251,-154.93171568,0.00037199,2]
[321082914,1711888232262,-176.3,0.0003744,2]
[321082915,1711888232271,-440.88,0.0003748,2]
[321082916,1711888232281,-166.73145783,0.00037655,7]
[321082917,1711888232291,-150.99,0.00037655,30]
[321082918,1711888232300,-153.96410707,0.00037775,7]
[321082919,1711888232309,-924.61,0.00037775,2]
[321082920,1711888232318,-153.11,0.00038883,2]
[321082921,1711888232328,-500.0,0.00039,3]
[321082922,1711888232337,-500.0,0.00039136,2]
[321082923,1711888232346,-250.0,0.00039154,112]
[321082924,1711888232355,-270.68,0.000392,2]
[321082925,1711888232365,-200.0,0.00039273,2]
[321082926,1711888232374,-500.0,0.00039299,2]
[321082927,1711888232383,-200.0,0.00039315,2]
[321082928,1711888232393,-400.0,0.00039319,3]
[321082929,1711888232402,-10000.0,0.0003932,60]
[321082930,1711888232412,-1179.61,0.00039321,2]
[321082931,1711888232421,-250.0,0.00039321,2]
[321082932,1711888232430,-489.5,0.00039321,2]
[321082933,1711888232440,-4646.54195405,0.00039329,2]
[321082934,1711888232452,-19243.45804595,0.00039329,2]
[321082935,1711888232461,-1574.46,0.00039336,120]
[321082936,1711888232471,-198.88,0.00039355,120]
[321082937,1711888232481,-5672.05,0.00039376,2]
[321082938,1711888232490,-901.63,0.00039381,2]
[321082939,1711888232499,-154.69,0.00039397,15]
[321082940,1711888232508,-710.66,0.00039406,2]
[321082941,1711888232517,-1142.57,0.0003941,2]
[321082942,1711888232526,-1429.73,0.00039418,2]
[321082943,1711888232535,-174.52,0.00039434,120]
[321082944,1711888232544,-224.27,0.00039447,2]
[321082945,1711888232554,-1465.64,0.00039458,2]
[321082946,1711888232563,-1000.0,0.00039494,2]
[321082947,1711888232572,-150.0,0.00039497,2]
[321082948,1711888232581,-1822.01,0.00039497,2]
[321082949,1711888232590,-3321.99,0.00039511,2]
[321082950,1711888232599,-440.88,0.00039744,2]
[321082951,1711888232609,-5594.72,0.00039793,2]
[321082952,1711888232618,-157.97184306,0.00039817,7]
[321082953,1711888232627,-1619.951,0.00039834,2]
[321082954,1711888232637,-499.99,0.0003988,2]
[321082955,1711888232646,-1000.0,0.00039889,2]
[321082956,1711888232655,-387.06,0.0003989,2]
[321082957,1711888232664,-1460.01,0.0003999,2]
[321082958,1711888232674,-387.06,0.00039999,2]
[321082959,1711888232683,-2989.0,0.0004,12]
[321082960,1711888232692,-387.06,0.00040109,2]
[321082961,1711888232701,-387.06,0.00040218,2]
[321082962,1711888232710,-387.06,0.00040328,2]
[321082963,1711888232719,-387.06,0.00040437,2]
[321082964,1711888232728,-387.06,0.00040546,2]
[321082965,1711888232738,-2000.0,0.00040548,5]
[321082966,1711888232747,-200.0,0.000406,14]
[321082967,1711888232756,-167.0,0.00040646,2]
[321082968,1711888232765,-387.06,0.00040656,2]
[321082969,1711888232775,-500.0,0.000407,14]
[321082970,1711888232784,-387.06,0.00040765,2]
[321082971,1711888232793,-700.0,0.000408,14]
[321082972,1711888232803,-387.06,0.00040875,2]
[321082973,1711888232815,-1000.0,0.000409,14]
[321082974,1711888232824,-387.06,0.00040984,2]
[321082975,1711888232834,-1018.0,0.00041,2]
[321082976,1711888232846,-1000.0,0.00041,3]
[321082977,1711888232855,-155.66684084,0.00041093,4]
[321082978,1711888232866,-1481.23933006,0.00041093,4]
[321082979,1711888232876,-258.73386865,0.00041093,4]
[321082980,1711888232885,-194.70259534,0.00041093,4]
[321082981,1711888232895,-199.02997118,0.00041093,4]
[321082982,1711888232904,-155.33140734,0.00041093,4]
[321082983,1711888232913,-221.41485105,0.00041093,4]
[321082984,1711888232922,-309.23678242,0.00041093,4]
[321082985,1711888232932,-387.06,0.00041093,2]
[321082986,1711888232941,-500.0,0.00041095,2]
[321082987,1711888232950,-500.39648187,0.00041095,4]
[321082988,1711888232959,-177.83246809,0.00041095,2]
[321082989,1711888232970,-509.6758177,0.00041095,4]
[321082990,1711888232979,-504.96474299,0.00041095,4]
[321082991,1711888232988,-549.28358394,0.00041095,4]
[321082992,1711888232998,-507.18444029,0.00041095,4]
[321082993,1711888233007,-500.0,0.00041095,4]
[321082994,1711888233017,-500.0,0.00041095,4]
[321082995,1711888233026,-500.0,0.00041095,4]
[321082996,1711888233035,-561.51419608,0.00041095,4]
[321082997,1711888233045,-500.0,0.00041095,4]
[321082998,1711888233054,-500.0,0.00041095,2]
[321082999,1711888233063,-504.98158892,0.00041095,4]
[321083001,1711888233072,-500.0,0.00041095,4]
[321083003,1711888233082,-500.0,0.00041095,4]
[321083005,1711888233091,-500.0,0.00041095,4]
[321083007,1711888233100,-500.0,0.00041095,4]
[321083009,1711888233109,-500.0,0.00041095,4]
[321083011,1711888233119,-1050.51,0.00041095,4]
[321083013,1711888233128,-500.0,0.00041095,4]
[321083015,1711888233137,-500.0,0.00041095,4]
[321083017,1711888233147,-500.0,0.00041095,4]
[321083019,1711888233156,-500.0,0.00041095,4]
[321083021,1711888233165,-500.0,0.00041095,4]
[321083023,1711888233174,-500.0,0.00041095,4]
[321083025,1711888233183,-500.0,0.00041095,4]
[321083027,1711888233192,-500.0,0.00041095,4]
[321083029,1711888233202,-500.0,0.00041095,4]
[321083031,1711888233211,-500.0,0.00041095,4]
[321083033,1711888233220,-500.0,0.00041095,4]
[321083035,1711888233229,-500.0,0.00041095,4]
[321083037,1711888233238,-500.0,0.00041095,4]
[321083039,1711888233247,-500.0,0.00041095,4]
[321083041,1711888233257,-500.0,0.00041095,4]
[321083043,1711888233266,-500.0,0.00041095,4]
[321083045,1711888233275,-500.0,0.00041095,4]
[321083047,1711888233284,-500.0,0.00041095,4]
[321083049,1711888233293,-500.0,0.00041095,4]
[321083051,1711888233303,-500.0,0.00041095,4]
[321083053,1711888233312,-500.0,0.00041095,4]
[321083055,1711888233321,-500.0,0.00041095,4]
[321083057,1711888233330,-500.0,0.00041095,4]
[321083059,1711888233339,-500.0,0.00041095,4]
[321083061,1711888233348,-500.0,0.00041095,4]
[321083063,1711888233357,-500.0,0.00041095,4]
[321083065,1711888233368,-500.0,0.00041095,4]
[321083067,1711888233379,-500.0,0.00041095,4]
[321083069,1711888233387,-1000.0,0.00041096,2]
[321083070,1711888233397,-951.0,0.00041096,2]
[321083073,1711888233406,-1500.0,0.00041096,45]
[321083075,1711888233415,-179.0,0.00041096,2]
[321083076,1711888233425,-201.10317061,0.00041096,30]
[321083078,1711888233434,-1500.0,0.000411,2]
[321083080,1711888233443,-1003.0,0.000411,10]
[321083083,1711888233453,-11055.14278321,0.00041168,2]
[321083084,1711888233463,-387.06,0.00041203,2]
[321083086,1711888233472,-4323.7839,0.00041268,2]
[321083088,1711888233482,-2248.0423,0.00041268,2]
[321083090,1711888233491,-4158.11617815,0.00041268,2]
[321083093,1711888233501,-174.32145471,0.00041268,2]
[321083095,1711888233510,-150.0,0.00041272,2]
[321083097,1711888233520,-387.06,0.00041312,2]
[321083099,1711888233528,-172.75,0.00041358,2]
[321083100,1711888233538,-500.0,0.00041367,4]
[321083103,1711888233547,-500.0,0.00041367,4]
[321083105,1711888233557,-500.0,0.00041367,4]
[321083107,1711888233566,-500.0,0.00041367,4]
[321083109,1711888233575,-1516.48,0.00041367,4]
[321083110,1711888233585,-512.90697031,0.00041367,4]
[321083113,1711888233594,-500.0,0.00041367,4]
[321083115,1711888233604,-500.0,0.00041367,4]
[321083117,1711888233613,-500.0,0.00041367,4]
[321083119,1711888233622,-663.93,0.00041367,4]
[321083121,1711888233631,-2363.9,0.00041367,4]
[321083123,1711888233641,-500.0,0.00041367,4]
[321083125,1711888233650,-8386.5,0.00041367,4]
[321083127,1711888233659,-7383.75,0.00041367,4]
[321083129,1711888233668,-500.0,0.00041367,4]
[321083131,1711888233677,-510.44,0.00041367,4]
[321083133,1711888233687,-2182.89,0.00041367,4]
[321083135,1711888233696,-500.0,0.00041367,4]
[321083137,1711888233705,-2258.17,0.00041367,4]
[321083139,1711888233714,-500.0,0.00041367,4]
[321083141,1711888233723,-1680.66,0.00041367,4]
[321083143,1711888233732,-500.0,0.00041367,4]
[321083145,1711888233741,-500.0,0.00041367,4]
[321083147,1711888233750,-500.0,0.00041367,4]
[321083149,1711888233759,-500.0,0.00041367,4]
[321083151,1711888233768,-500.0,0.00041367,4]
[321083153,1711888233777,-2953.8,0.00041367,4]
[321083155,1711888233788,-500.0,0.00041367,4]
[321083157,1711888233797,-500.0,0.00041367,4]
[321083159,1711888233808,-500.0,0.00041367,4]
[321083161,1711888233818,-500.0,0.00041367,4]
[321083163,1711888233827,-1981.93,0.00041367,4]
[321083165,1711888233836,-500.0,0.00041367,4]
[321083167,1711888233845,-500.0,0.00041367,4]
[321083169,1711888233854,-500.0,0.00041367,4]
[321083171,1711888233863,-500.0,0.00041367,4]
[321083173,1711888233874,-500.0,0.00041367,4]
[321083175,1711888233884,-15646.96,0.00041367,4]
[321083177,1711888233893,-500.0,0.00041367,4]
[321083179,1711888233902,-397.21145431,0.00041367,2]
[321083181,1711888233911,-500.0,0.00041367,4]
[321083183,1711888233921,-500.0,0.00041367,4]
[321083185,1711888233930,-500.0,0.00041367,4]
[321083187,1711888233939,-500.0,0.00041367,4]
[321083189,1711888233948,-500.0,0.00041367,4]
[321083191,1711888233957,-527.69916402,0.00041367,4]
[321083193,1711888233966,-500.0,0.00041367,4]
[321083196,1711888233975,-500.0,0.00041367,4]
[321083198,1711888233985,-500.0,0.00041367,4]
[321083200,1711888233993,-1378.24,0.00041367,4]
[321083201,1711888234002,-500.0,0.00041367,4]
[321083203,1711888234012,-500.0,0.00041367,4]
[321083205,1711888234021,-500.0,0.00041367,4]
[321083207,1711888234031,-500.0,0.00041367,4]
[321083210,1711888234042,-500.0,0.00041367,2]
[321083212,1711888234050,-500.0,0.00041367,4]
[321083214,1711888234059,-414.08781143,0.00041367,4]
[321083216,1711888234069,-500.0,0.00041367,4]
[321083218,1711888234078,-393.16666711,0.00041367,4]
[321083220,1711888234087,-500.0,0.00041367,4]
[321083222,1711888234096,-436.63492823,0.00041368,4]
[321083224,1711888234105,-533.45143053,0.00041368,4]
[321083226,1711888234114,-448.76953733,0.00041368,4]
[321083228,1711888234123,-500.0,0.00041368,4]
[321083230,1711888234132,-500.0,0.00041368,4]
[321083232,1711888234142,-508.66198166,0.00041368,4]
[321083234,1711888234150,-500.0,0.00041368,4]
[321083236,1711888234160,-500.0,0.00041368,4]
[321083238,1711888234169,-513.53440312,0.00041368,4]
[321083240,1711888234178,-339.73776881,0.00041368,4]
[321083242,1711888234187,-500.0,0.00041368,4]
[321083244,1711888234196,-507.27862165,0.00041368,4]
[321083246,1711888234204,-502.02900859,0.00041368,4]
[321083248,1711888234213,-500.0,0.00041368,4]
[321083250,1711888234222,-500.0,0.00041368,4]
[321083252,1711888234231,-500.0,0.00041368,4]
[321083254,1711888234240,-512.33616279,0.00041368,4]
[321083256,1711888234249,-515.82561395,0.00041368,4]
[321083258,1711888234258,-533.73007397,0.00041368,4]
[321083260,1711888234267,-480.81165738,0.00041368,4]
[321083262,1711888234276,-500.0,0.00041368,4]
[321083264,1711888234286,-500.0,0.00041368,4]
[321083266,1711888234295,-500.0,0.00041368,4]
[321083268,1711888234304,-500.0,0.00041368,4]
[321083270,1711888234313,-500.0,0.00041368,4]
[321083272,1711888234322,-500.0,0.00041368,4]
[321083274,1711888234331,-500.0,0.00041368,4]
[321083276,1711888234340,-262.87102311,0.00041368,4]
[321083278,1711888234349,-500.0,0.00041368,4]
[321083279,1711888234358,-500.0,0.00041368,4]
[321083282,1711888234367,-500.0,0.00041368,4]
[321083284,1711888234377,-500.0,0.00041368,4]
[321083286,1711888234386,-500.0,0.00041368,4]
[321083288,1711888234394,-500.0,0.00041368,4]
[321083290,1711888234405,-500.0,0.00041368,4]
[321083292,1711888234414,-500.0,0.00041368,4]
[321083294,1711888234423,-500.0,0.00041368,4]
[321083296,1711888234431,-500.0,0.00041368,4]
[321083298,1711888234441,-500.0,0.00041368,4]
[321083300,1711888234450,-500.0,0.00041368,4]
[321083302,1711888234459,-500.0,0.00041368,4]
[321083304,1711888234468,-500.0,0.00041368,4]
[321083306,1711888234478,-1000.0,0.00041368,30]
[321083308,1711888234487,-500.0,0.00041368,4]
[321083310,1711888234496,-500.0,0.00041368,4]
[321083312,1711888234505,-500.0,0.00041368,4]
[321083314,1711888234515,-500.0,0.00041368,4]
[321083316,1711888234525,-500.0,0.00041368,4]
[321083318,1711888234535,-500.0,0.00041368,4]
[321083320,1711888234545,-508.94844256,0.00041368,4]
[321083322,1711888234555,-500.0,0.00041368,4]
[321083324,1711888234566,-500.0,0.00041368,4]
[321083326,1711888234575,-500.0,0.00041368,4]
[321083328,1711888234585,-500.0,0.00041368,4]
[321083330,1711888234594,-510.64425491,0.00041368,4]
[321083332,1711888234604,-500.0,0.00041368,4]
[321083334,1711888234614,-523.26102453,0.00041368,4]
[321083336,1711888234625,-500.0,0.00041368,4]
[321083337,1711888234634,-500.0,0.00041368,4]
[321083338,1711888234645,-536.16835053,0.00041368,4]
[321083339,1711888234656,-537.15161895,0.00041368,4]
[321083340,1711888234666,-500.0,0.00041368,4]
[321083341,1711888234675,-500.0,0.00041368,4]
[321083342,1711888234685,-500.0,0.00041368,4]
[321083343,1711888234695,-510.74743864,0.00041368,4]
[321083344,1711888234705,-500.0,0.00041368,4]
[321083346,1711888234715,-500.0,0.00041368,4]
[321083348,1711888234725,-500.0,0.00041368,4]
[321083350,1711888234736,-500.0,0.00041368,4]
[321083352,1711888234750,-500.0,0.00041368,4]
[321083354,1711888234760,-500.0,0.00041368,4]
[321083356,1711888234770,-500.0,0.00041368,4]
[321083358,1711888234780,-500.0,0.00041368,4]
[321083360,1711888234791,-521.58216232,0.00041368,4]
[321083362,1711888234803,-500.0,0.00041368,4]
[321083365,1711888234816,-500.0,0.00041368,4]
[321083367,1711888234828,-500.0,0.00041368,4]
[321083369,1711888234839,-500.0,0.00041368,4]
[321083371,1711888234850,-500.0,0.00041368,4]
[321083372,1711888234860,-500.0,0.00041368,4]
[321083375,1711888234870,-510.5042499,0.00041368,4]
[321083377,1711888234881,-500.0,0.00041368,4]
[321083379,1711888234892,-500.0,0.00041368,4]
[321083381,1711888234904,-500.0,0.00041368,4]
[321083383,1711888234916,-500.0,0.00041368,4]
[321083385,1711888234930,-500.0,0.00041368,4]
[321083386,1711888234941,-500.0,0.00041368,4]
[321083388,1711888234951,-500.0,0.00041368,4]
[321083390,1711888234962,-500.0,0.00041368,4]
[321083392,1711888234973,-500.0,0.00041368,4]
[321083394,1711888234984,-1327.89,0.00041368,4]
[321083396,1711888234995,-505.5257319,0.00041368,4]
[321083398,1711888235004,-500.0,0.00041368,4]
[321083400,1711888235015,-509.69658056,0.00041368,4]
[321083401,1711888235025,-517.21010087,0.00041368,4]
[321083402,1711888235036,-968.49967428,0.00041368,2]
[321083403,1711888235046,-500.0,0.00041368,4]
[321083404,1711888235056,-500.0,0.00041368,4]
[321083405,1711888235066,-500.0,0.00041368,4]
[321083406,1711888235076,-171.86083597,0.00041368,4]
[321083407,1711888235086,-500.0,0.00041368,4]
[321083408,1711888235095,-500.0,0.00041368,4]
[321083409,1711888235105,-500.0,0.00041368,4]
[321083410,1711888235114,-500.0,0.00041368,4]
[321083411,1711888235124,-508.73590619,0.00041368,4]
[321083412,1711888235133,-500.0,0.00041368,4]
[321083413,1711888235143,-500.0,0.00041368,4]
[321083414,1711888235152,-500.0,0.00041368,4]
[321083415,1711888235334,-500.0,0.00041368,4]
[321083416,1711888235344,-503.72334113,0.00041368,4]
[321083417,1711888235356,-500.0,0.00041368,4]
[321083418,1711888235365,-500.0,0.00041368,4]
[321083419,1711888235374,-500.0,0.00041368,4]
[321083420,1711888235384,-500.0,0.00041368,4]
[321083421,1711888235393,-500.0,0.00041368,4]
[321083422,1711888235403,-500.0,0.00041368,4]
[321083423,1711888235413,-1334.71,0.00041368,4]
[321083424,1711888235422,-500.0,0.00041368,4]
[321083425,1711888235432,-500.0,0.00041368,4]
[321083426,1711888235441,-500.0,0.00041368,4]
[321083427,1711888235451,-500.0,0.00041368,4]
[321083428,1711888235460,-500.0,0.00041368,4]
[321083429,1711888235470,-3340.39,0.00041368,4]
[321083430,1711888235479,-500.0,0.00041368,4]
[321083431,1711888235489,-516.88861373,0.00041368,4]
[321083432,1711888235498,-500.0,0.00041368,4]
[321083433,1711888235508,-500.0,0.00041368,4]
[321083434,1711888235517,-500.0,0.00041368,4]
[321083435,1711888235527,-1708.74,0.00041368,4]
[321083436,1711888235538,-500.0,0.00041368,4]
[321083437,1711888235547,-2291.25,0.00041368,4]
[321083438,1711888235557,-500.0,0.00041368,4]
[321083439,1711888235567,-1555.81,0.00041368,4]
[321083440,1711888235577,-1117.22,0.00041368,4]
[321083441,1711888235586,-500.0,0.00041368,4]
[321083442,1711888235595,-1780.71,0.00041368,4]
[321083443,1711888235605,-500.0,0.00041368,4]
[321083444,1711888235614,-500.0,0.00041368,4]
[321083445,1711888235624,-500.0,0.00041368,4]
[321083446,1711888235633,-6900.25,0.00041368,4]
[321083447,1711888235643,-500.0,0.00041368,4]
[321083448,1711888235652,-500.0,0.00041368,4]
[321083449,1711888235661,-1000.0,0.00041368,4]
[321083450,1711888235671,-7350.98,0.00041368,4]
[321083451,1711888235680,-500.0,0.00041368,4]
[321083452,1711888235689,-3705.01,0.00041368,4]
[321083453,1711888235699,-500.0,0.00041368,4]
[321083454,1711888235708,-500.0,0.00041368,4]
[321083455,1711888235718,-500.0,0.00041368,4]
[321083456,1711888235728,-1767.99,0.00041368,4]
[321083457,1711888235738,-500.0,0.00041368,4]
[321083458,1711888235748,-500.0,0.00041368,4]
[321083459,1711888235757,-500.0,0.00041368,4]
[321083460,1711888235767,-500.0,0.00041368,4]
[321083461,1711888235777,-2863.54,0.00041368,4]
[321083462,1711888235788,-500.0,0.00041368,4]
[321083463,1711888235798,-500.0,0.00041368,4]
[321083464,1711888235809,-2361.59,0.00041368,4]
[321083465,1711888235821,-500.0,0.00041368,4]
[321083466,1711888235830,-3245.62,0.00041368,4]
[321083467,1711888235840,-500.0,0.00041368,4]
[321083468,1711888235850,-500.0,0.00041368,4]
[321083469,1711888235860,-500.0,0.00041368,4]
[321083470,1711888235869,-500.0,0.00041368,4]
[321083471,1711888235879,-3669.18,0.00041368,4]
[321083472,1711888235889,-500.0,0.00041368,4]
[321083473,1711888235898,-500.0,0.00041368,4]
[321083474,1711888235908,-4066.83,0.00041368,4]
[321083475,1711888235917,-500.0,0.00041368,4]
[321083476,1711888235926,-500.0,0.00041368,4]
[321083477,1711888235936,-1719.84,0.00041368,4]
[321083478,1711888235945,-500.0,0.00041368,4]
[321083479,1711888235954,-500.0,0.00041368,4]
[321083480,1711888235964,-1887.58,0.00041368,4]
[321083481,1711888235973,-1978.23,0.00041368,4]
[321083482,1711888235983,-500.0,0.00041368,4]
[321083483,1711888235992,-2123.2,0.00041368,4]
[321083484,1711888236002,-500.0,0.00041368,4]
[321083485,1711888236011,-500.0,0.00041368,4]
[321083486,1711888236020,-500.0,0.00041368,4]
[321083487,1711888236030,-270.71477142,0.00041368,4]
[321083488,1711888236040,-2163.21,0.00041368,4]
[321083489,1711888236049,-500.0,0.00041368,4]
[321083490,1711888236059,-13146.94,0.00041368,4]
[321083491,1711888236068,-770.08,0.00041368,4]
[321083492,1711888236078,-2967.22,0.00041368,4]
[321083493,1711888236088,-500.0,0.00041368,4]
[321083494,1711888236098,-3613.06,0.00041368,4]
[321083495,1711888236108,-500.0,0.00041368,4]
[321083496,1711888236117,-500.0,0.00041368,4]
[321083497,1711888236126,-188.51518041,0.00041368,4]
[321083498,1711888236136,-500.0,0.00041368,4]
[321083499,1711888236146,-500.0,0.00041368,4]
[321083500,1711888236156,-500.0,0.00041368,4]
[321083501,1711888236165,-500.0,0.00041368,4]
[321083502,1711888236178,-665.17,0.00041368,4]
[321083503,1711888236188,-647.02,0.00041368,4]
[321083504,1711888236202,-2347.75,0.00041368,4]
[321083505,1711888236211,-343.25346465,0.00041368,4]
[321083506,1711888236221,-5265.02,0.00041368,4]
[321083507,1711888236231,-926.3,0.00041368,4]
[321083508,1711888236241,-500.0,0.00041368,4]
[321083509,1711888236250,-500.0,0.00041368,4]
[321083510,1711888236259,-500.0,0.00041368,4]
[321083511,1711888236268,-17483.08,0.00041368,4]
[321083512,1711888236278,-505.62039934,0.00041368,4]
[321083513,1711888236288,-1411.68,0.00041368,4]
[321083514,1711888236297,-500.0,0.00041369,2]